[Event "94th Tradewise Hastings Congress"]
[Site "Hastings"]
[Date "2018.12.30"]
[Round "3"]
[White "Gu, In Jung"]
[Black "Byrn, Carsten"]
[Result "1-0"]
[ECO "B40"]
[WhiteElo "1794"]
[BlackElo "1959"]
[Annotator "NA"]
[PlyCount "67"]
[EventDate "2018.12.28"]
[EventType "swiss"]
[EventCountry "ENG"]
[SourceTitle "playchess.com"]
[Source "ChessBase"]
[SourceQuality "1"]
[TimeControl "40/6000+30:3000+30"]

1. e4 {[%emt 1:29:53]} c5 {[%emt 0:34:11]} 2. Nf3 {[%emt 0:00:30]} e6 {[%emt 0:00:30]} 3. d3 {[%emt 0:00:30]} b5 {[%emt 0:00:30]} 4. g3 {[%emt 0:00:30]} Bb7 {[%emt 0:00:30]} 5. Bg2 {[%emt 0:00:30]} a6 {[%emt 0:00:30]} 6. O-O {[%emt 0:00:30]} d6 {[%emt 0:00:30]} 7. Qe2 {[%emt 0:00:30]} Qc7 {[%emt 0:00:30]} 8. a4 {[%emt 0:00:30]} b4 {[%emt 0:00:30]} 9. Nbd2 {[%emt 0:00:30]} Nd7 {[%emt 0:00:30]} 10. b3 {[%emt 0:00:30]} Ngf6 {[%emt 0:00:30]} 11. Bb2 {[%emt 0:00:30]} e5 {[%emt 0:00:30]} 12. Nh4 {[%emt 0:00:30]} g6 {[%emt 0:00:30]} 13. f4 {[%emt 0:00:30]} Bg7 {[%emt 0:00:30]} 14. fxe5 {[%emt 0:00:30]} dxe5 {[%emt 0:00:30]} 15. Nc4 {[%emt 0:00:30]} O-O {[%emt 0:00:30]} 16. Bh3 {[%emt 0:00:30]} Rfe8 {[%emt 0:00:30]} 17. Rf2 {[%emt 0:00:30]} Nh5 {[%emt 0:00:30]} 18. Bxd7 {[%emt 0:00:30]} Qxd7 {[%emt 0:00:30]} 19. Nb6 {[%emt 0:00:30]} Qe6 {[%emt 0:00:30]} 20. Nxa8 {[%emt 0:00:30]} Rxa8 {[%emt 0:00:30]} 21. Raf1 {[%emt 0:00:30]} f6 {[%emt 0:00:30]} 22. Bc1 {[%emt 0:00:30]} Bc8 {[%emt 0:00:30]} 23. Nf5 {[%emt 0:00:30]} gxf5 {[%emt 0:00:30]} 24. Qxh5 {[%emt 0:00:30]} fxe4 {[%emt 0:00:30]} 25. dxe4 {[%emt 0:00:30]} Bb7 {[%emt 0:00:30]} 26. Bh6 {[%emt 0:00:30]} Bxe4 {[%emt 0:00:30]} 27. Bxg7 {[%emt 0:00:30]} Kxg7 {[%emt 0:00:30]} 28. Rxf6 {[%emt 0:00:30]} Qxf6 {[%emt 0:00:30]} 29. Rxf6 {[%emt 0:00:30]} Kxf6 {[%emt 0:00:30]} 30. Qh4+ {[%emt 0:00:30]} Kf5 {[%emt 0:00:30]} 31. Qxh7+ {[%emt 0:00:30]} Kf6 {[%emt 0:00:30]} 32. Qxe4 {[%emt 0:00:30]} Re8 {[%emt 0:00:30]} 33. h4 {[%emt 0:00:30]} Rg8 {[%emt 0:00:30]} 34. g4 {[%emt 0:00:30]} 1-0

[Event "94th Tradewise Hastings Congress"]
[Site "Hastings"]
[Date "2018.12.31"]
[Round "4"]
[White "Lalic, Bogdan"]
[Black "Taylor, Adam C"]
[Result "1-0"]
[ECO "D37"]
[WhiteElo "2420"]
[BlackElo "2331"]
[Annotator "RC"]
[PlyCount "51"]
[EventDate "2018.12.28"]
[EventType "swiss"]
[EventCountry "ENG"]
[SourceTitle "playchess.com"]
[Source "ChessBase"]
[SourceQuality "1"]
[TimeControl "40/6000+30:3000+30"]

1. d4 {[%emt 0:07:31]} Nf6 {[%emt 0:00:00]} 2. c4 {[%emt 0:00:23]} e6 {[%emt 0:00:00]} 3. Nf3 {[%emt 0:00:07]} d5 {[%emt 0:00:00]} 4. Nc3 {[%emt 0:00:07]} Be7 {[%emt 0:00:00]} 5. Bg5 {[%emt 0:00:31]} h6 {[%emt 0:00:12]} 6. Bxf6 {[%emt 0:00:11]} Bxf6 {[%emt 0:00:05]} 7. Qb3 {[%emt 0:00:45]} dxc4 {[%emt 0:06:49]} 8. Qxc4 {[%emt 0:00:09]} O-O {[%emt 0:00:24]} 9. e4 {[%emt 0:00:21]} b6 {[%emt 0:02:27]} 10. O-O-O {[%emt 0:01:16]} Ba6 {[%emt 0:08:35]} 11. Qa4 {[%emt 0:01:28]} Bxf1 {[%emt 0:01:10]} 12. Rhxf1 {[%emt 0:00:06]} Qd7 {[%emt 0:00:05]} 13. Qxd7 {[%emt 0:03:03]} Nxd7 {[%emt 0:00:05]} 14. e5 {[%emt 0:00:06]} Be7 {[%emt 0:03:01]} 15. d5 {[%emt 0:00:09]} Nc5 {[%emt 0:02:24]} 16. Nd4 {[%emt 0:01:03]} Rfe8 {[%emt 0:14:24]} 17. Nc6 {[%emt 0:00:32]} f6 {[%emt 0:16:32]} 18. d6 {[%emt 0:10:10]} cxd6 {[%emt 0:01:57]} 19. exd6 {[%emt 0:00:05]} Bd8 {[%emt 0:00:07]} 20. d7 {[%emt 0:00:08]} Rf8 {[%emt 0:00:07]} 21. b4 {[%emt 0:00:27]} Na6 {[%emt 0:01:31]} 22. Nb5 {[%emt 0:02:13]} Nc7 {[%emt 0:00:06]} 23. Nxd8 {[%emt 0:00:36]} Nxb5 {[%emt 0:02:25]} 24. Nxe6 {[%emt 0:00:08]} Rfd8 {[%emt 0:00:15]} 25. Kb2 {[%emt 0:00:36]} Kf7 {[%emt 0:00:26]} 26. Rfe1 {[%emt 0:00:13]} 1-0

[Event "94th Tradewise Hastings Congress"]
[Site "Hastings"]
[Date "2018.12.31"]
[Round "4"]
[White "Payne, Matthew J"]
[Black "Larsen, Andreas"]
[Result "1-0"]
[ECO "B01"]
[WhiteElo "2182"]
[BlackElo "1933"]
[Annotator "ChessBase"]
[PlyCount "35"]
[EventDate "2018.12.28"]
[EventType "swiss"]
[EventCountry "ENG"]
[SourceTitle "playchess.com"]
[Source "ChessBase"]
[SourceQuality "1"]
[TimeControl "40/6000+30:3000+30"]

1. e4 {[%emt 0:00:00]} d5 {[%emt 0:00:00]} 2. exd5 {[%emt 0:00:00]} Nf6 {[%emt 0:00:00]} 3. d4 {[%emt 0:00:14]} Nxd5 {[%emt 0:00:00]} 4. Nf3 {[%emt 0:01:06]} Bf5 {[%emt 0:03:03]} 5. Bd3 {[%emt 0:04:43]} Bxd3 {[%emt 0:06:36]} 6. Qxd3 {[%emt 0:00:15]} Nc6 {[%emt 0:00:50]} 7. a3 {[%emt 0:07:19]} Qd6 {[%emt 0:07:11]} 8. c4 {[%emt 0:09:58]} Nf4 {[%emt 0:17:12]} 9. Qe4 {[%emt 0:02:01]} Ne6 {[%emt 0:18:11]} 10. Be3 {[%emt 0:01:16]} f5 {[%emt 0:01:09]} 11. Qxf5 {[%emt 0:07:29]} Nexd4 {[%emt 0:01:56]} 12. Nxd4 {[%emt 0:00:52]} Nxd4 {[%emt 0:00:08]} 13. Bxd4 {[%emt 0:03:12]} Qxd4 {[%emt 0:00:09]} 14. Nc3 {[%emt 0:00:49]} g6 {[%emt 0:12:17]} 15. Qb5+ {[%emt 0:01:28]} c6 {[%emt 0:00:08]} 16. Qxb7 {[%emt 0:00:21]} Qe5+ {[%emt 0:01:02]} 17. Ne2 {[%emt 0:01:21]} Bh6 {[%emt 0:09:02]} 18. Qxa8+ {[%emt 0:02:34]} 1-0

[Event "94th Tradewise Hastings Congress"]
[Site "Hastings"]
[Date "2018.12.31"]
[Round "4"]
[White "Brown, Thomas"]
[Black "Spanton, Tim R"]
[Result "1-0"]
[ECO "D02"]
[WhiteElo "2068"]
[BlackElo "1954"]
[Annotator "NA RC"]
[PlyCount "77"]
[EventDate "2018.12.28"]
[EventType "swiss"]
[EventCountry "ENG"]
[SourceTitle "playchess.com"]
[Source "ChessBase"]
[SourceQuality "1"]
[TimeControl "40/6000+30:3000+30"]

1. Nf3 {[%emt 0:00:10]} Nc6 {[%emt 0:00:00]} 2. d4 {[%emt 0:02:17]} d5 {[%emt 0:00:00]} 3. e3 {[%emt 0:00:44]} Bg4 {[%emt 0:00:00]} 4. Bb5 {[%emt 0:01:09]} Nf6 {[%emt 0:00:41] D02: 1 d4 d5 2 Nf3 sidelines, including 2...Nf6 3 g3 and 2...Nf6 3 Bf4} 5. h3 {[%emt 0:01:18]} Bxf3 {[%emt 0:00:52]} 6. Qxf3 {[%emt 0:00:42]} a6 {[%emt 0:00:17]} 7. Bxc6+ {[%emt 0:19:01]} bxc6 {[%emt 0:00:07]} 8. c4 {[%emt 0:03:50]} e6 {[%emt 0:03:12]} 9. O-O {[%emt 0:06:01]} Ne4 $146 {[%emt 0:02:01]} ({Predecessor:} 9... c5 10. dxc5 Bxc5 11. cxd5 exd5 12. b3 {½-½ (67) Ruck,R (2571)-Dinstuhl,V (2401) Germany 2013}) 10. Nc3 {[%emt 0:02:08]} Nxc3 {[%emt 0:01:08]} 11. bxc3 {[%emt 0:00:49]} f5 {[%emt 0:00:31]} 12. cxd5 {[%emt 0:04:40]} cxd5 {[%emt 0:00:21]} 13. c4 {[%emt 0:00:15]} c6 {[%emt 0:00:35]} 14. Bd2 {[%emt 0:07:57]} Bd6 {[%emt 0:01:03]} 15. Rab1 {[%emt 0:02:10]} Rb8 {[%emt 0:01:29]} 16. Qe2 {[%emt 0:03:03]} O-O {[%emt 0:01:21]} 17. c5 {[%emt 0:00:51]} Bc7 {[%emt 0:00:10]} 18. Rxb8 {[%emt 0:01:46]} Qxb8 {[%emt 0:00:24]} 19. Qxa6 {[%emt 0:00:14]} Qa8 {[%emt 0:00:58]} 20. Qxa8 {[%emt 0:01:53]} Rxa8 {[%emt 0:00:08]} 21. Ra1 {[%emt 0:00:34]} Ra4 {[%emt 0:00:43]} 22. f4 {[%emt 0:15:38]} Kf7 {[%emt 0:02:21]} 23. Kf1 {[%emt 0:07:45]} g5 {[%emt 0:04:09]} 24. fxg5 {[%emt 0:04:22]} e5 {[%emt 0:00:08]} (24... Kg6 $1 $14) 25. Rb1 {[%emt 0:01:08]} Rxa2 $2 {[%emt 0:01:27]} (25... Bd8 $16 {was worth a try.}) 26. Rb7 $1 {[%emt 0:02:00]} Rxd2 {[%emt 0:00:07]} 27. Rxc7+ {[%emt 0:00:40]} Kg6 {[%emt 0:00:15]} 28. dxe5 {[%emt 0:05:54]} d4 {[%emt 0:00:44]} 29. Rxc6+ {[%emt 0:07:23]} Kxg5 {[%emt 0:00:08]} 30. exd4 {[%emt 0:00:42]} Rxd4 $18 {[%emt 0:00:09]} 31. Re6 {[%emt 0:02:31]} f4 {[%emt 0:00:51]} 32. c6 {[%emt 0:00:33]} Rc4 {[%emt 0:00:48]} 33. Ke2 {[%emt 0:03:49]} Kf5 {[%emt 0:00:12]} 34. Kd3 {[%emt 0:00:55]} Rc1 {[%emt 0:00:21]} 35. Rh6 {[%emt 0:00:14]} Kxe5 {[%emt 0:00:16]} 36. Rxh7 {[%emt 0:01:25]} Rd1+ {[%emt 0:00:35]} 37. Kc2 {[%emt 0:00:41]} Rd6 {[%emt 0:00:12]} 38. c7 {[%emt 0:00:11]} Rc6+ {[%emt 0:00:08]} 39. Kd3 {[%emt 0:00:17]} 1-0

[Event "94th Tradewise Hastings Congress"]
[Site "Hastings"]
[Date "2018.12.31"]
[Round "4"]
[White "Miller, Dominic"]
[Black "Peek, Marcel"]
[Result "0-1"]
[ECO "B33"]
[WhiteElo "2061"]
[BlackElo "2293"]
[Annotator "ChessBase"]
[PlyCount "62"]
[EventDate "2018.12.28"]
[EventType "swiss"]
[EventCountry "ENG"]
[SourceTitle "playchess.com"]
[Source "ChessBase"]
[SourceQuality "1"]
[TimeControl "40/6000+30:3000+30"]

1. e4 {[%emt 0:00:00]} c5 {[%emt 0:00:00]} 2. Nf3 {[%emt 0:00:00]} Nc6 {[%emt 0:00:00]} 3. d4 {[%emt 0:00:00]} cxd4 {[%emt 0:00:00]} 4. Nxd4 {[%emt 0:00:01]} Nf6 {[%emt 0:00:00]} 5. Nc3 {[%emt 0:00:04]} e5 {[%emt 0:00:17]} 6. Ndb5 {[%emt 0:00:07]} d6 {[%emt 0:00:07]} 7. Bg5 {[%emt 0:00:16]} a6 {[%emt 0:00:07]} 8. Na3 {[%emt 0:00:04]} b5 {[%emt 0:00:06]} 9. Nd5 {[%emt 0:00:05]} Be7 {[%emt 0:00:10]} 10. Bxf6 {[%emt 0:00:15]} Bxf6 {[%emt 0:00:07]} 11. c3 {[%emt 0:00:06]} Ne7 {[%emt 0:00:53]} 12. Nxf6+ {[%emt 0:01:27]} gxf6 {[%emt 0:00:16]} 13. Nc2 {[%emt 0:04:53]} Bb7 {[%emt 0:00:59]} 14. Bd3 {[%emt 0:00:06]} d5 {[%emt 0:00:55]} 15. exd5 {[%emt 0:00:12]} Qxd5 {[%emt 0:00:20]} 16. Ne3 {[%emt 0:00:13]} Qe6 {[%emt 0:01:38]} 17. a4 {[%emt 0:07:38]} Rd8 {[%emt 0:01:18]} 18. Qc2 {[%emt 0:01:50]} e4 {[%emt 0:00:38]} 19. Be2 {[%emt 0:01:27]} O-O {[%emt 0:02:59]} 20. axb5 {[%emt 0:01:01]} axb5 {[%emt 0:01:24]} 21. Bxb5 {[%emt 0:00:12]} f5 {[%emt 0:01:43]} 22. Qe2 {[%emt 0:03:23]} Ng6 {[%emt 0:08:08]} 23. g3 {[%emt 0:04:08]} Ne5 {[%emt 0:03:59]} 24. Qh5 {[%emt 0:02:23]} Nf3+ {[%emt 0:02:31]} 25. Kf1 {[%emt 0:00:03]} Kh8 {[%emt 0:00:14]} 26. Qxf5 {[%emt 0:04:32]} Qxf5 {[%emt 0:01:10]} 27. Nxf5 {[%emt 0:00:04]} Rd5 {[%emt 0:00:08]} 28. Ra7 {[%emt 0:02:26]} Bc8 {[%emt 0:03:24]} 29. Nh6 {[%emt 0:05:37]} Kg7 {[%emt 0:13:16]} 30. Nxf7 {[%emt 0:02:59]} Rxf7 {[%emt 0:00:29]} 31. Rxf7+ {[%emt 0:00:05]} Kxf7 {[%emt 0:00:07]} 0-1

[Event "94th Tradewise Hastings Congress"]
[Site "Hastings"]
[Date "2018.12.31"]
[Round "4"]
[White "Comellas Blanchart, Jordi"]
[Black "Royal, Shreyas"]
[Result "1-0"]
[ECO "E69"]
[WhiteElo "2055"]
[BlackElo "1930"]
[Annotator "NA RC"]
[PlyCount "119"]
[EventDate "2018.12.28"]
[EventType "swiss"]
[EventCountry "ENG"]
[SourceTitle "playchess.com"]
[Source "ChessBase"]
[SourceQuality "1"]
[TimeControl "40/6000+30:3000+30"]

{[%evp 26,108,30,7,18,27,16,9,15,0,39,30,32767,45,220,44,50,3,5,18,11,0,0,-18,13,32767,32767,32767,32767,32767,32767,37,32767,36,44,32767,32767,32767,32767,32767,79,32767,96,60,78,45,101,31,57,39,64,0,140,130,133,0,0,0,32767,32767,32767,32767,32767,32767,32767,32767,32767,32767,32767,32767,32767,32767,32767,-8,32767,32767,210,183,218,277,280,295,612,643,1043]} 1. d4 {[%emt 0:00:00]} Nf6 {[%emt 0:00:27]} 2. c4 {[%emt 0:00:00]} g6 {[%emt 0:00:45]} 3. g3 {[%emt 0:01:08]} Bg7 {[%emt 0:00:55]} 4. Bg2 {[%emt 0:00:00]} O-O {[%emt 0:01:14]} 5. Nc3 {[%emt 0:00:00]} d6 {[%emt 0:00:14]} 6. Nf3 {[%emt 0:00:00]} Nbd7 {[%emt 0:02:30]} 7. O-O {[%emt 0:00:00]} e5 {[%emt 0:01:32]} 8. e4 {[%emt 0:00:00]} c6 {[%emt 0:00:35]} 9. h3 {[%emt 0:00:50]} Qa5 {[%emt 0:01:39]} 10. Re1 {[%emt 0:04:58]} exd4 {[%emt 0:02:09]} 11. Nxd4 {[%emt 0:00:11]} Ne5 {[%emt 0:00:32]} 12. Bf1 {[%emt 0:11:51]} Qb6 {[%emt 0:05:16] E69: King's Indian: Fianchetto: 6...Nbd7 7 0-0 e5 8 e4 c6 9 h3} 13. Nb3 {[%emt 0:09:52]} Be6 {[%emt 0:01:40]} 14. Be3 {[%emt 0:02:18]} c5 {[%emt 0:00:41]} 15. Nd5 {[%emt 0:26:18]} Bxd5 {[%emt 0:00:10]} 16. exd5 {[%emt 0:00:22]} Rae8 {[%emt 0:00:06] LiveBook: 5 Games} 17. Rc1 {[%emt 0:03:01]} (17. Kg2 Re7 18. Qc2 Rfe8 19. Bd2 Qd8 20. a4 {0-1 (38) Howell,D (2676)-McShane,L (2640) London 2017}) 17... Qb4 $146 {[%emt 0:06:06]} ({Predecessor:} 17... Re7 18. Bg2 Rfe8 19. Qc2 Nh5 20. g4 {1-0 (56) Lalith,B (2529)-Akash,G (2391) New Delhi 2018}) 18. Kg2 {[%emt 0:02:16]} Qb6 {[%emt 0:06:51]} 19. Qc2 {[%emt 0:02:25]} Re7 $2 {[%emt 0:01:42] [#]} ({Better is} 19... Ned7 $14) 20. Nd2 $2 {[%emt 0:01:50]} (20. f4 $1 $18) 20... Rfe8 {[%emt 0:02:09]} 21. Rb1 {[%emt 0:03:12]} Qc7 {[%emt 0:03:38]} 22. a3 {[%emt 0:02:20]} Ned7 {[%emt 0:01:20]} 23. Rec1 {[%emt 0:04:34]} b5 {[%emt 0:04:31]} 24. b3 {[%emt 0:06:26]} Nb6 {[%emt 0:01:54]} 25. Bd3 {[%emt 0:06:37]} Nfd7 {[%emt 0:08:13]} 26. Bg5 {[%emt 0:01:24]} f6 {[%emt 0:00:09]} 27. Bf4 {[%emt 0:00:23]} f5 {[%emt 0:01:39]} 28. Nf3 {[%emt 0:00:43]} bxc4 {[%emt 0:06:40]} 29. bxc4 {[%emt 0:01:16]} Ne5 {[%emt 0:00:33]} 30. Bg5 {[%emt 0:05:45]} Rf7 {[%emt 0:01:25]} 31. Re1 {[%emt 0:01:15]} Ref8 {[%emt 0:00:53]} 32. Be2 {[%emt 0:04:48]} h6 {[%emt 0:00:54]} 33. Bd2 {[%emt 0:01:48]} g5 {[%emt 0:00:57]} 34. Rf1 {[%emt 0:00:59]} Qe7 {[%emt 0:09:35]} 35. Rbe1 {[%emt 0:01:27]} Qf6 {[%emt 0:00:58]} ({Better is} 35... Nxf3 $14 36. Bxf3 Be5) 36. Bc3 {[%emt 0:03:42]} (36. Nxe5 $16 dxe5 37. Bh5) 36... Qg6 {[%emt 0:01:08]} 37. Nxe5 {[%emt 0:01:21]} dxe5 {[%emt 0:00:06]} 38. g4 {[%emt 0:00:25]} ({White should try} 38. f3 $16) 38... Qd6 {[%emt 0:00:12]} (38... e4 $11) 39. gxf5 {[%emt 0:00:37]} Rxf5 {[%emt 0:00:14]} 40. Bg4 {[%emt 0:00:28]} (40. Bd2 $16) 40... Rf4 {[%emt 0:02:03]} 41. Be6+ {[%emt 0:52:37]} Kh8 {[%emt 0:50:05]} 42. Re4 {[%emt 0:00:00]} Nxc4 {[%emt 0:00:00]} 43. Qe2 {[%emt 0:00:00]} Rxe4 {[%emt 0:00:00]} 44. Qxe4 {[%emt 0:00:00]} Rf4 {[%emt 0:00:00]} 45. Qg6 {[%emt 0:00:00]} Qf8 {[%emt 0:00:00]} 46. Qd3 {[%emt 0:00:00]} Nd6 {[%emt 0:00:00]} 47. Qe2 {[%emt 0:00:00]} e4 {[%emt 0:00:00]} 48. Qb2 {[%emt 0:00:00]} Kh7 {[%emt 0:00:00]} 49. Bxg7 $1 {[%emt 0:00:00]} Qxg7 {[%emt 0:00:00]} 50. Qb8 {[%emt 0:00:00]} Nc4 $2 {[%emt 0:00:00] [#]} (50... Nf7 $11 {and Black has nothing to worry.}) 51. d6 $1 {[%emt 0:00:00]} Nb6 {[%emt 0:00:00]} 52. Qc7 {[%emt 0:00:00]} Rf8 {[%emt 0:00:00]} 53. d7 {[%emt 0:00:00]} ({But not} 53. Qxc5 $6 Qf6 $16) 53... Na8 $18 {[%emt 0:00:00]} (53... Nxd7 54. Qxd7 (54. Bxd7 Rf7 $18) 54... Qxd7 55. Bxd7 Rf3) 54. Qxc5 {[%emt 0:00:00]} Nb6 {[%emt 0:00:00]} 55. Rd1 {[%emt 0:00:00]} Rd8 {[%emt 0:00:00]} 56. Qf5+ {[%emt 0:00:00]} Qg6 {[%emt 0:00:00]} 57. Qe5 {[%emt 0:00:00]} Qg7 {[%emt 0:00:00]} 58. Bf5+ {[%emt 0:00:00]} Kh8 {[%emt 0:00:00]} 59. Qe8+ {[%emt 0:00:00]} Qg8 {[%emt 0:00:00]} 60. Qe7 {[%emt 0:00:00]} 1-0

[Event "94th Tradewise Hastings Congress"]
[Site "Hastings"]
[Date "2018.12.31"]
[Round "4"]
[White "Fryer, David W"]
[Black "Stoyanov, Viktor"]
[Result "0-1"]
[ECO "A07"]
[WhiteElo "1932"]
[BlackElo "2205"]
[Annotator "ChessBase"]
[PlyCount "44"]
[EventDate "2018.12.28"]
[EventType "swiss"]
[EventCountry "ENG"]
[SourceTitle "playchess.com"]
[Source "ChessBase"]
[SourceQuality "1"]
[TimeControl "40/6000+30:3000+30"]

1. Nf3 {[%emt 0:00:00]} d5 {[%emt 0:00:49]} 2. g3 {[%emt 0:00:00]} c6 {[%emt 0:00:04]} 3. Bg2 {[%emt 0:00:00]} Bg4 {[%emt 0:00:05]} 4. O-O {[%emt 0:00:11]} e6 {[%emt 0:00:03]} 5. d3 {[%emt 0:00:49]} Nd7 {[%emt 0:00:04]} 6. Nbd2 {[%emt 0:03:14]} Bd6 {[%emt 0:00:25]} 7. e4 {[%emt 0:06:04]} Ne7 {[%emt 0:00:06]} 8. Qe1 {[%emt 0:07:08]} O-O {[%emt 0:00:15]} 9. h4 {[%emt 0:06:00]} e5 {[%emt 0:17:45]} 10. Ng5 {[%emt 0:04:03]} h6 {[%emt 0:17:56]} 11. f3 {[%emt 0:03:36]} Bc5+ {[%emt 0:02:35]} 12. Kh1 {[%emt 0:03:24]} Bh5 {[%emt 0:04:00]} 13. Nh3 {[%emt 0:01:06]} Bg6 {[%emt 0:08:45]} 14. Nb3 {[%emt 0:07:39]} Bd6 {[%emt 0:00:17]} 15. g4 {[%emt 0:00:37]} f6 {[%emt 0:06:06]} 16. Qg3 {[%emt 0:02:38]} Bf7 {[%emt 0:03:10]} 17. Bxh6 {[%emt 0:02:56]} gxh6 {[%emt 0:00:21]} 18. g5 {[%emt 0:00:11]} hxg5 {[%emt 0:01:18]} 19. hxg5 {[%emt 0:01:06]} f5 {[%emt 0:00:51]} 20. f4 {[%emt 0:02:28]} Bg6 {[%emt 0:00:52]} 21. d4 {[%emt 0:01:15]} exf4 {[%emt 0:01:17]} 22. Rxf4 {[%emt 0:01:23]} fxe4 {[%emt 0:02:13]} 0-1

[Event "94th Tradewise Hastings Congress"]
[Site "Hastings"]
[Date "2018.12.31"]
[Round "4"]
[White "Rahulan, Thivyaa"]
[Black "Nettleton, Charlie B"]
[Result "0-1"]
[ECO "B06"]
[WhiteElo "1814"]
[BlackElo "2059"]
[Annotator "NA RC"]
[PlyCount "90"]
[EventDate "2018.12.28"]
[EventType "swiss"]
[EventCountry "ENG"]
[SourceTitle "playchess.com"]
[Source "ChessBase"]
[SourceQuality "1"]
[TimeControl "40/6000+30:3000+30"]

1. e4 {[%emt 0:00:00]} g6 {[%emt 0:00:00]} 2. d4 {[%emt 0:00:00]} Bg7 {[%emt 0:00:00]} 3. Nc3 {[%emt 0:00:07]} d6 {[%emt 0:00:05]} 4. h3 {[%emt 0:00:53]} a6 {[%emt 0:00:26]} 5. a4 {[%emt 0:01:49]} b6 {[%emt 0:02:12] B06: Modern Defence} 6. Nf3 {[%emt 0:02:43]} (6. g4 Bb7 7. Bg2 e6 8. Nge2 Nd7 9. Be3 h5 10. Rg1 hxg4 11. hxg4 c5 12. Qd2 Ne7 13. f4 cxd4 14. Nxd4 {½-½ (32) Chigaev,M (2542)-Dubov,D (2666) Kolomna 2016}) 6... Bb7 {[%emt 0:00:31]} 7. Bf4 {[%emt 0:03:15]} e6 {[%emt 0:08:13]} 8. Bg5 $146 {[%emt 0:05:31]} ({Predecessor:} 8. Be2 Nd7 9. O-O Ne7 10. e5 d5 11. b4 c5 12. b5 a5 {½-½ (30) Andersson,C (2170)-Vasilevich,T (2385) Reykjavik 2006}) 8... Ne7 {[%emt 0:01:11]} 9. Be2 {[%emt 0:00:32]} h6 {[%emt 0:00:28]} 10. Be3 {[%emt 0:00:38]} Nd7 {[%emt 0:06:47]} 11. Qd2 {[%emt 0:04:12]} Nf6 {[%emt 0:01:33]} 12. Bd3 {[%emt 0:00:22]} c5 {[%emt 0:14:38]} 13. O-O {[%emt 0:10:55]} c4 {[%emt 0:01:24]} 14. Bxc4 {[%emt 0:00:31]} Nxe4 {[%emt 0:00:47]} 15. Nxe4 {[%emt 0:00:12]} Bxe4 {[%emt 0:00:04]} 16. Be2 {[%emt 0:00:25]} Nf5 {[%emt 0:08:33]} 17. c3 {[%emt 0:10:07]} O-O {[%emt 0:03:19]} 18. Rfe1 {[%emt 0:03:21]} Qc7 {[%emt 0:06:01]} 19. Nh2 {[%emt 0:08:25]} Qb7 {[%emt 0:14:24]} 20. Bf3 {[%emt 0:00:45]} Bxf3 {[%emt 0:00:29]} 21. Nxf3 {[%emt 0:00:10]} Qd5 {[%emt 0:01:03]} 22. Qd3 {[%emt 0:07:43]} b5 {[%emt 0:00:14]} 23. Nd2 {[%emt 0:02:15]} e5 {[%emt 0:06:26]} 24. Ne4 {[%emt 0:09:41]} Nxe3 {[%emt 0:01:02]} 25. fxe3 {[%emt 0:00:50]} f5 {[%emt 0:00:14]} 26. Nd2 {[%emt 0:00:49]} e4 {[%emt 0:00:48]} 27. Qe2 {[%emt 0:00:33]} Qc6 {[%emt 0:06:36]} 28. axb5 {[%emt 0:07:17]} axb5 {[%emt 0:06:57]} 29. Rf1 {[%emt 0:06:55]} d5 {[%emt 0:03:14]} 30. Nb3 {[%emt 0:03:00]} Qc4 {[%emt 0:00:52]} 31. Qc2 {[%emt 0:02:46]} Rxa1 {[%emt 0:09:16]} 32. Rxa1 {[%emt 0:00:57]} f4 {[%emt 0:00:24]} 33. Nc5 {[%emt 0:02:33]} b4 {[%emt 0:05:15]} 34. Ne6 {[%emt 0:02:36]} Rf7 {[%emt 0:00:21]} 35. Nxf4 {[%emt 0:00:25]} Bxd4 {[%emt 0:00:43]} 36. Nxd5 {[%emt 0:03:20]} Bc5 {[%emt 0:01:33]} 37. Qd2 {[%emt 0:03:14]} b3 {[%emt 0:00:33]} 38. Nb4 {[%emt 0:03:41]} Kg7 {[%emt 0:01:22]} 39. Rc1 {[%emt 0:02:16]} h5 {[%emt 0:00:14]} 40. Rd1 {[%emt 0:01:19]} Rb7 {[%emt 0:00:21]} 41. h4 {[%emt 0:03:52]} Qe6 {[%emt 0:15:41]} 42. Nd5 {[%emt 0:02:51]} Qg4 {[%emt 0:00:37]} 43. Qe1 {[%emt 0:00:31]} Rf7 $11 {[%emt 0:01:02]} 44. Kh1 {[%emt 0:03:52]} Bd6 {[%emt 0:01:26]} 45. c4 {[%emt 0:13:48]} Rf1+ {[%emt 0:01:04]} 0-1